bitfinex-derivatives/quotes_BTCF0:USTF0_20241015
["timestamp","ask_amount","ask_price","bid_price","bid_amount"]
[1728960264213,0.03723846,65786.0,65785.0,0.196416]
[1728960264517,0.076012,65789.0,65788.0,0.076013]
[1728960264715,0.076012,65789.0,65788.0,0.076413]
[1728960265118,0.196012,65789.0,65788.0,0.076413]
[1728960271009,0.12,65789.0,65788.0,0.076413]
[1728960271220,0.12,65792.0,65790.0,0.07601]
[1728960271423,0.12,65792.0,65791.0,0.04596689]
[1728960271822,0.12,65792.0,65791.0,0.04596722]
[1728960272415,0.076007,65793.0,65791.0,0.0004]
[1728960272623,0.12,65792.0,65791.0,0.076408]
[1728960274028,0.12,65792.0,65791.0,0.077408]
[1728960278040,0.076007,65793.0,65792.0,0.076008]
[1728960278229,0.076007,65793.0,65792.0,0.076408]
[1728960279135,0.076007,65793.0,65792.0,0.077408]
[1728960279433,0.076007,65793.0,65792.0,0.078408]
[1728960282637,0.12,65794.0,65793.0,0.076007]
[1728960282840,0.12,65794.0,65793.0,0.12194224]
[1728960283935,0.12,65794.0,65793.0,0.12294224]
[1728960284135,0.12,65794.0,65793.0,0.12394224]
[1728960285426,0.20390271,65794.0,65793.0,0.078407]
[1728960286233,0.1572333,65794.0,65793.0,0.078407]
[1728960287431,0.20390193,65794.0,65793.0,0.078407]
[1728960287638,0.1572333,65794.0,65793.0,0.078407]
[1728960288034,0.20390204,65794.0,65793.0,0.078407]
[1728960290236,0.34019546,65794.0,65793.0,0.078407]
[1728960291735,0.20390204,65794.0,65793.0,0.078407]
[1728960292433,0.1572333,65794.0,65793.0,0.1392301]
[1728960292634,0.12,65794.0,65793.0,0.1392301]
[1728960293237,0.12,65794.0,65793.0,0.078407]
[1728960298443,0.12,65794.0,65793.0,0.13921701]
[1728960298444,0.196006,65794.0,65793.0,0.13921701]
[1728960298639,0.196006,65794.0,65793.0,0.078407]
[1728960299045,0.196006,65794.0,65793.0,0.06321002]
[1728960299235,0.196006,65794.0,65793.0,0.0024]
[1728960300445,0.33444781,65794.0,65793.0,0.0024]
[1728960301046,0.4465331,65794.0,65793.0,0.0024]
[1728960301649,0.33444781,65794.0,65793.0,0.0024]
[1728960301846,0.36724781,65794.0,65793.0,0.0024]
[1728960302851,0.36724781,65794.0,65788.0,0.0004]
[1728960302852,0.076011,65789.0,65788.0,0.0004]
[1728960303039,0.7607175,65789.0,65788.0,0.0004]
[1728960303243,2.31525528,65789.0,65788.0,0.0004]
[1728960303445,0.076015,65786.0,65782.0,0.0106]
[1728960303648,0.316015,65786.0,65779.0,0.011]
[1728960303957,0.076021,65781.0,65779.0,0.01284]
[1728960304143,0.076021,65781.0,65779.0,0.0004]
[1728960304341,0.1599275,65781.0,65779.0,0.0004]
[1728960304662,0.1900275,65781.0,65779.0,0.0004]
[1728960304854,0.1900275,65781.0,65780.0,0.0044]
[1728960305157,0.1900275,65781.0,65780.0,0.0084]
[1728960306043,0.3100275,65781.0,65780.0,0.0084]
[1728960306248,0.46125571,65781.0,65780.0,0.0084]
[1728960306941,0.3100275,65781.0,65780.0,0.0044]
[1728960307147,0.3100275,65781.0,65780.0,0.0084]
[1728960307748,0.18807329,65781.0,65780.0,0.08442888]
[1728960308344,0.18807329,65781.0,65780.0,0.0084]
[1728960316253,0.15797329,65781.0,65780.0,0.0084]
[1728960322551,0.24189503,65781.0,65780.0,0.0084]
[1728960322756,0.39312324,65781.0,65780.0,0.0084]
[1728960323258,0.24189503,65781.0,65780.0,0.0084]
[1728960323460,0.39302969,65781.0,65780.0,0.0084]
[1728960323655,0.24189503,65781.0,65780.0,0.0084]
[1728960323861,0.3930341,65781.0,65780.0,0.0084]
[1728960324062,0.24189503,65781.0,65780.0,0.0084]
[1728960324264,0.3930341,65781.0,65780.0,0.0084]
[1728960324451,0.24189503,65781.0,65780.0,0.0084]
[1728960324764,0.3930341,65781.0,65780.0,0.0084]
[1728960324963,0.24189503,65781.0,65780.0,0.0084]
[1728960325359,0.23245566,65781.0,65780.0,0.0084]
[1728960325562,0.3930316,65781.0,65780.0,0.0084]
[1728960326364,0.24189253,65781.0,65780.0,0.0084]
[1728960327460,0.46294864,65781.0,65780.0,0.0084]
[1728960328557,0.29643685,65781.0,65780.0,0.0084]
[1728960329655,0.40841597,65781.0,65780.0,0.0084]
[1728960329860,0.46296029,65781.0,65780.0,0.0084]
[1728960330252,0.40841597,65781.0,65780.0,0.0084]
[1728960330453,0.46296021,65781.0,65780.0,0.0084]
[1728960330663,0.32449673,65781.0,65780.0,0.0084]
[1728960330866,0.15797329,65781.0,65780.0,0.0084]
[1728960331267,0.15797329,65781.0,65780.0,0.0690685]
[1728960332269,0.15797329,65781.0,65780.0,0.0084]
[1728960336867,1.65797329,65781.0,65780.0,0.0084]
[1728960337669,0.08391917,65781.0,65780.0,0.4892]
[1728960337873,0.08391917,65781.0,65780.0,0.597922]
[1728960338184,0.0372412,65781.0,65780.0,0.5219]
[1728960338381,0.0372412,65781.0,65780.0,0.597922]
[1728960342083,0.0372412,65781.0,65780.0,0.237122]
[1728960342373,0.0372412,65781.0,65780.0,0.597922]
[1728960343674,0.0035,65789.0,65788.0,0.076013]
[1728960343872,0.24253344,65791.0,65788.0,0.0004]
[1728960343873,0.04667231,65790.0,65788.0,0.0004]
[1728960344068,0.19810676,65789.0,65788.0,0.196413]
[1728960344269,0.19807076,65789.0,65788.0,0.196413]
[1728960344867,0.04667231,65789.0,65788.0,0.196413]
[1728960345769,0.07601,65790.0,65788.0,0.196413]
[1728960345972,0.07601,65790.0,65789.0,0.0004]
[1728960347273,0.07601,65790.0,65789.0,0.0459537]
[1728960352783,0.11324443,65790.0,65789.0,0.0004]
[1728960352983,0.15991526,65790.0,65789.0,0.0004]
[1728960355381,0.2961432,65790.0,65789.0,0.0004]
[1728960355979,0.08390526,65790.0,65789.0,0.1204]
[1728960356172,0.08390526,65790.0,65789.0,0.196411]
[1728960356173,0.08390527,65790.0,65789.0,0.196411]
[1728960356575,0.15139845,65793.0,65792.0,0.076008]
[1728960356878,0.15129831,65793.0,65792.0,0.557208]
[1728960357188,0.0035,65800.0,65799.0,0.076]
[1728960357377,0.195994,65804.0,65799.0,0.12]
[1728960357579,0.16652344,65801.0,65799.0,0.1204]
[1728960357778,0.195994,65804.0,65801.0,0.075998]
[1728960357779,0.16652344,65802.0,65801.0,0.075998]
[1728960357981,0.16652344,65802.0,65801.0,0.076398]
[1728960358576,0.16652344,65803.0,65802.0,0.075996]
[1728960358780,0.05452434,65803.0,65802.0,0.076396]
[1728960358981,0.16640433,65803.0,65802.0,0.076396]
[1728960359180,0.195994,65804.0,65802.0,0.076396]
[1728960359379,0.220898,65803.0,65802.0,0.076396]
[1728960359580,0.36236766,65804.0,65802.0,0.076396]
[1728960359787,0.36236766,65804.0,65803.0,0.0004]
[1728960359984,0.24236766,65804.0,65803.0,0.0004]
[1728960360188,0.36236766,65804.0,65803.0,0.0004]
[1728960360690,0.195994,65804.0,65803.0,0.0004]
[1728960360899,0.195994,65804.0,65803.0,0.076395]
[1728960361083,0.075994,65804.0,65803.0,0.077395]
[1728960361592,0.195994,65804.0,65803.0,0.077395]
[1728960362687,0.195994,65804.0,65803.0,0.078395]
[1728960366493,0.195994,65804.0,65803.0,0.0024]
[1728960366804,0.075994,65804.0,65803.0,0.1124]
[1728960366996,0.075994,65804.0,65803.0,0.188395]
[1728960367179,0.03,65807.0,65803.0,0.1579537]
[1728960367390,0.03,65807.0,65806.0,0.1104]
[1728960367587,0.03,65807.0,65806.0,0.186392]
[1728960369393,0.03,65807.0,65806.0,0.187392]
[1728960370495,0.03,65807.0,65806.0,0.188392]
[1728960370997,0.0319,65810.0,65806.0,0.1124]
[1728960371184,0.0325,65811.0,65810.0,0.075987]
[1728960371380,0.0325,65811.0,65810.0,0.076387]
[1728960372588,0.108486,65811.0,65810.0,0.077387]
[1728960373091,0.108486,65811.0,65810.0,0.078387]
[1728960375799,0.19236666,65811.0,65810.0,0.078387]
[1728960376109,0.24688517,65811.0,65810.0,0.078387]
[1728960376601,0.21438517,65811.0,65810.0,0.078387]
[1728960376797,0.08388066,65811.0,65810.0,0.078387]
[1728960378195,0.27986666,65811.0,65810.0,0.078387]
[1728960378405,0.31116666,65811.0,65810.0,0.078387]
[1728960378595,0.36568517,65811.0,65810.0,0.078387]
[1728960380996,0.35568517,65811.0,65810.0,0.078387]
[1728960382005,0.35568415,65811.0,65810.0,0.078387]
[1728960382893,0.217286,65811.0,65810.0,0.078387]
[1728960389220,0.107286,65811.0,65810.0,0.078387]
[1728960390809,0.19116676,65811.0,65810.0,0.078387]
[1728960391109,0.79196676,65811.0,65810.0,0.0024]
[1728960391302,0.84648533,65811.0,65810.0,0.0024]
[1728960391812,0.84648533,65811.0,65801.0,0.0039]
[1728960391813,0.45588,65810.0,65801.0,0.0039]
[1728960392010,0.45588,65810.0,65799.0,0.0039]
[1728960392011,0.075999,65800.0,65799.0,0.0022]
[1728960392308,0.076007,65793.0,65792.0,0.0004]
[1728960392497,2.09403381,65793.0,65792.0,0.0004]
[1728960392698,2.19522141,65793.0,65788.0,0.0004]
[1728960392902,0.19601,65790.0,65788.0,0.0004]
[1728960393112,0.27989809,65790.0,65788.0,0.0004]
[1728960393307,0.33442441,65790.0,65788.0,0.0004]
[1728960393914,0.076022,65781.0,65778.0,0.03075516]
[1728960394116,0.076025,65778.0,65776.0,0.3608]
[1728960394320,0.25022401,65777.0,65776.0,0.3608]
[1728960394812,0.15991309,65777.0,65776.0,0.3608]
[1728960395311,0.24223856,65777.0,65776.0,0.3608]
[1728960395509,0.076027,65776.0,65767.0,0.02729623]
[1728960395714,0.15108642,65770.0,65766.0,0.4808]
[1728960395914,0.23497451,65769.0,65767.0,0.076037]
[1728960396113,0.08388809,65768.0,65767.0,0.076037]
[1728960396513,0.13585641,65768.0,65767.0,0.076037]
[1728960396721,0.13585641,65768.0,65767.0,0.196037]
[1728960397017,0.2197445,65768.0,65767.0,0.196037]
[1728960397208,0.18251769,65768.0,65767.0,0.196037]
[1728960397413,0.03722681,65768.0,65767.0,0.196037]
[1728960397621,0.03722681,65769.0,65767.0,0.196037]
[1728960397807,0.13585641,65770.0,65768.0,0.33341711]
[1728960398010,0.13585641,65770.0,65769.0,0.11630575]
[1728960398405,0.13585641,65770.0,65769.0,0.20704753]
[1728960398816,0.13585641,65770.0,65769.0,0.11630575]
[1728960399218,0.13585641,65770.0,65769.0,0.20704753]
[1728960399520,0.13585641,65770.0,65769.0,0.11630575]
[1728960400620,0.13585641,65770.0,65769.0,0.13630575]
[1728960401116,0.13585641,65770.0,65769.0,0.13630251]
[1728960403311,0.13585641,65770.0,65769.0,0.0204]
[1728960403511,0.13585641,65770.0,65769.0,0.09589814]
[1728960403723,0.13585641,65770.0,65769.0,0.21180275]
[1728960403919,0.13585641,65770.0,65769.0,0.09589814]
[1728960405724,0.13585641,65770.0,65769.0,0.0204]
[1728960407520,0.196031,65772.0,65769.0,0.0204]
[1728960407714,0.196031,65772.0,65771.0,0.0004]
[1728960409412,0.076031,65772.0,65771.0,0.0004]
[1728960410021,0.076031,65772.0,65771.0,0.0084]
[1728960410419,0.076031,65772.0,65771.0,0.0164]
[1728960413223,0.076031,65772.0,65771.0,0.0441418]
[1728960414917,0.076031,65772.0,65771.0,0.1201738]
[1728960415717,0.206626,65777.0,65772.0,0.076031]
[1728960415934,0.076027,65776.0,65772.0,0.076031]
[1728960416126,0.076028,65775.0,65772.0,0.076031]
[1728960416418,0.436822,65780.0,65774.0,0.12]
[1728960416619,0.436822,65780.0,65779.0,0.0004]
[1728960419122,0.076022,65780.0,65779.0,0.3612]
[1728960420415,0.076022,65780.0,65779.0,0.0004]
[1728960420716,0.107622,65780.0,65779.0,0.0004]
[1728960420924,0.24609816,65780.0,65779.0,0.0004]
[1728960421132,0.24609816,65780.0,65771.0,0.0281418]
[1728960421133,0.076031,65772.0,65771.0,0.0281418]
[1728960421322,0.39995832,65772.0,65771.0,0.0004]
[1728960421531,0.45450716,65772.0,65771.0,0.0004]
[1728960422026,0.33450716,65772.0,65771.0,0.0004]
[1728960422417,0.45450716,65772.0,65771.0,0.0164]
[1728960422929,0.33450716,65772.0,65771.0,0.0164]
[1728960423125,0.45450716,65772.0,65771.0,0.0164]
[1728960423529,0.33450716,65772.0,65771.0,0.0164]
[1728960423933,0.45450716,65772.0,65771.0,0.0164]
[1728960424229,0.37057984,65772.0,65771.0,0.0164]
[1728960424533,0.45451136,65772.0,65771.0,0.0164]
[1728960425318,0.33451136,65772.0,65771.0,0.0164]
[1728960427025,0.45451136,65772.0,65771.0,0.0164]
[1728960428133,0.34376118,65772.0,65771.0,0.22305031]
[1728960429032,0.22376118,65772.0,65771.0,0.22305031]
[1728960430937,0.22376118,65772.0,65771.0,0.13230853]
[1728960431222,0.22376118,65772.0,65771.0,0.22305031]
[1728960431427,0.196031,65772.0,65771.0,0.22305031]
[1728960431825,0.196031,65772.0,65771.0,0.13230853]
[1728960432529,0.076031,65772.0,65771.0,0.13230853]
[1728960432732,0.076031,65772.0,65771.0,0.22353438]
[1728960433336,0.076031,65772.0,65771.0,0.13230853]
[1728960433940,0.076031,65772.0,65771.0,0.13230624]
[1728960435944,0.076031,65772.0,65771.0,0.0164]
[1728960443032,0.15996513,65772.0,65771.0,0.0164]
[1728960443443,0.21451839,65772.0,65771.0,0.0164]
[1728960443644,0.21451838,65772.0,65771.0,0.0164]
[1728960444351,0.38117813,65772.0,65771.0,0.0164]
[1728960445531,0.50117471,65772.0,65771.0,0.0164]
[1728960445739,0.33452042,65772.0,65771.0,0.0164]
[1728960446637,1.83452042,65772.0,65771.0,0.0164]
[1728960447137,1.83452042,65772.0,65771.0,0.0144]
[1728960447739,1.77996512,65772.0,65771.0,0.0144]
[1728960448139,1.77996512,65772.0,65771.0,0.0124]
[1728960448347,1.77997116,65772.0,65771.0,0.0124]
[1728960448851,1.83452834,65772.0,65771.0,0.0124]
[1728960450348,2.19532834,65772.0,65771.0,0.0124]
[1728960450943,2.056831,65772.0,65771.0,0.0124]
[1728960461155,1.936831,65772.0,65771.0,0.0124]
[1728960461350,2.056831,65772.0,65771.0,0.0124]
[1728960461742,2.176831,65772.0,65771.0,0.0124]
[1728960462349,2.056831,65772.0,65771.0,0.0124]
[1728960465957,2.19532329,65772.0,65771.0,0.0124]
[1728960469764,2.07532329,65772.0,65771.0,0.0124]
[1728960469964,2.19532329,65772.0,65771.0,0.0124]
[1728960470757,1.99138619,65772.0,65771.0,0.0124]
[1728960470964,0.63774255,65772.0,65771.0,0.0124]
[1728960471159,0.69532228,65772.0,65771.0,0.088432]
[1728960472963,0.556831,65772.0,65771.0,0.088432]
[1728960478466,0.196031,65772.0,65771.0,0.088432]
[1728960481173,0.27996098,65772.0,65771.0,0.088432]
[1728960481364,0.33451154,65772.0,65771.0,0.088432]
[1728960481561,0.33451154,65772.0,65771.0,0.0124]
[1728960482570,0.81531154,65772.0,65771.0,0.0124]
[1728960483162,0.76076098,65772.0,65771.0,0.0124]
[1728960485574,0.81531915,65772.0,65771.0,0.0124]
[1728960486366,0.84276502,65772.0,65771.0,0.0124]
[1728960488176,0.70427687,65772.0,65771.0,0.0124]
[1728960491276,0.46427687,65772.0,65771.0,0.0124]
[1728960491574,0.70427687,65772.0,65771.0,0.0124]
[1728960492471,0.46427687,65772.0,65771.0,0.0124]
[1728960492675,0.58427687,65772.0,65771.0,0.0124]
[1728960493771,0.556831,65772.0,65771.0,0.0124]
[1728960494178,0.0106,65779.0,65771.0,0.1324]
[1728960494477,0.076021,65781.0,65778.0,0.1204]
[1728960494665,0.076021,65781.0,65780.0,0.0004]
[1728960494868,0.196021,65781.0,65780.0,0.0004]
[1728960496071,0.27994612,65781.0,65780.0,0.0004]
[1728960496270,0.33449353,65781.0,65780.0,0.0004]
[1728960497269,0.33849353,65781.0,65780.0,0.0004]
[1728960498070,1.83849353,65781.0,65780.0,0.0004]
[1728960498275,1.83849353,65781.0,65780.0,0.00034609]
[1728960498276,1.90090647,65781.0,65780.0,0.00034609]
[1728960499974,1.90091013,65781.0,65780.0,0.00034609]
[1728960502983,1.78091013,65781.0,65780.0,0.00034609]
[1728960503184,0.124,65781.0,65780.0,0.00034609]
[1728960506982,0.004,65781.0,65780.0,0.00034609]
[1728960507172,0.004,65781.0,65780.0,0.12034609]
[1728960508088,0.004,65781.0,65780.0,0.00034609]
[1728960508285,0.124,65781.0,65780.0,0.00034609]
[1728960508686,0.004,65781.0,65780.0,0.00034609]
[1728960508881,0.004,65781.0,65780.0,0.12034609]
[1728960511091,0.08791655,65781.0,65780.0,0.12034609]
[1728960512483,0.08791655,65781.0,65780.0,0.72034609]
[1728960512786,0.08791655,65781.0,65780.0,1.17642609]
[1728960513795,0.17019931,65781.0,65780.0,1.17642609]
[1728960514194,0.21687358,65781.0,65780.0,1.17642609]
[1728960514488,0.20743648,65781.0,65780.0,1.17642609]
[1728960514690,0.17019931,65781.0,65780.0,1.17642609]
[1728960515288,0.25411075,65781.0,65780.0,1.17642609]
[1728960515688,0.08791144,65781.0,65780.0,1.17642609]
[1728960516086,0.25411075,65781.0,65780.0,1.17642609]
[1728960516989,0.08791144,65781.0,65780.0,1.17642609]
[1728960518187,0.004,65781.0,65780.0,1.17642609]
[1728960518592,0.004,65781.0,65780.0,1.25244809]
[1728960521697,0.004,65781.0,65780.0,0.65244809]
[1728960523099,0.004,65781.0,65780.0,0.19636809]
[1728960524600,0.004,65781.0,65780.0,0.07636809]
[1728960524794,0.080021,65781.0,65780.0,0.00034609]
[1728960526693,0.440821,65781.0,65780.0,0.00034609]
[1728960528693,0.560821,65781.0,65780.0,0.00034609]
[1728960529302,0.200021,65781.0,65780.0,0.00034609]
[1728960530698,0.076023,65779.0,65778.0,0.0004]
[1728960531001,0.076031,65772.0,65763.0,0.076041]
[1728960531201,0.076039,65766.0,65763.0,0.076041]
[1728960531400,0.12,65764.0,65763.0,0.10380406]
[1728960531805,0.108139,65765.0,65763.0,0.10380406]
[1728960532104,0.108139,65765.0,65764.0,0.0004]
[1728960533300,0.108139,65765.0,65764.0,0.0074]
[1728960534003,0.140639,65765.0,65764.0,0.0074]
[1728960534209,0.141639,65765.0,65764.0,0.0144]
[1728960541302,0.10358279,65765.0,65764.0,0.20608327]
[1728960541513,0.10358279,65765.0,65764.0,0.13031922]
[1728960541905,0.10358279,65765.0,65764.0,0.20608306]
[1728960542307,0.10358279,65765.0,65764.0,0.2060782]
[1728960542504,0.10358279,65765.0,65764.0,0.09015974]
[1728960542702,0.10358279,65765.0,65764.0,0.0144]
[1728960542906,0.10358279,65765.0,65764.0,0.09015974]
[1728960543410,0.10358279,65765.0,65764.0,0.0144]
[1728960546914,0.0335,65765.0,65764.0,0.0144]
[1728960548006,0.109539,65765.0,65764.0,0.0144]
[1728960548312,0.06387034,65765.0,65764.0,0.1303223]
[1728960548911,1.14747782,65765.0,65764.0,0.1303223]
[1728960549213,0.45616,65764.0,65756.0,0.09107074]
[1728960549409,0.076051,65755.0,65754.0,0.09107074]
[1728960549716,0.256051,65755.0,65754.0,0.2070051]
[1728960551107,0.261051,65755.0,65754.0,0.2070051]
[1728960551806,0.261051,65755.0,65754.0,0.11593472]
[1728960551807,0.201051,65755.0,65754.0,0.11593472]
[1728960552115,0.201051,65755.0,65754.0,0.20689142]
[1728960552305,0.206051,65755.0,65754.0,0.19198672]
[1728960553213,0.206051,65755.0,65754.0,0.33309817]
[1728960555817,0.206051,65755.0,65754.0,0.25704617]
[1728960556214,0.206051,65755.0,65753.0,0.04553044]
[1728960556520,0.12,65754.0,65752.0,0.076054]
[1728960556816,0.076053,65753.0,65752.0,0.076054]
[1728960558917,0.080053,65753.0,65752.0,0.13676125]
[1728960559212,0.083053,65753.0,65752.0,0.076054]
[1728960560409,0.083053,65753.0,65752.0,0.13676125]
[1728960560804,0.083053,65753.0,65752.0,0.076054]
[1728960561217,0.083053,65753.0,65752.0,0.13682528]
[1728960561614,0.083053,65753.0,65752.0,0.076054]
[1728960563219,0.007,65753.0,65752.0,0.45308547]
[1728960564717,0.004,65753.0,65752.0,0.55933467]
[1728960565017,0.076051,65755.0,65754.0,0.076052]
[1728960565322,0.076051,65755.0,65754.0,0.33348347]
[1728960566416,0.0106,65762.0,65754.0,0.25743147]
[1728960566620,0.0008,65764.0,65761.0,0.0004]
[1728960566818,0.076043,65762.0,65761.0,0.0004]
[1728960567019,0.196043,65762.0,65761.0,0.25741671]
[1728960568015,0.196043,65762.0,65761.0,0.42468968]
[1728960568016,0.12,65762.0,65761.0,0.42468968]
[1728960568223,0.07433196,65762.0,65761.0,0.42468968]
[1728960568615,0.07433196,65762.0,65761.0,0.42568968]
[1728960568922,0.15037496,65762.0,65761.0,0.42568968]
[1728960569417,0.15037496,65762.0,65761.0,0.25941671]
[1728960570037,0.076038,65767.0,65761.0,0.74021671]
[1728960570226,0.076038,65767.0,65766.0,0.196038]
[1728960570424,0.076038,65767.0,65766.0,0.196438]
[1728960571915,0.080038,65767.0,65766.0,0.196438]
[1728960572111,0.004,65767.0,65766.0,0.196438]
[1728960572511,0.007,65767.0,65766.0,0.196438]
[1728960573618,0.007,65767.0,65766.0,0.22423304]
[1728960574022,0.003,65767.0,65766.0,1.28039304]
[1728960574318,0.002,65767.0,65766.0,1.28039304]
[1728960574527,0.0141,65774.0,65773.0,0.07603]
[1728960574714,0.076021,65781.0,65773.0,0.1204]
[1728960574915,0.12,65784.0,65780.0,0.0004]
[1728960575114,0.196021,65781.0,65780.0,0.0004]
[1728960575920,0.256021,65781.0,65780.0,0.0004]
[1728960577119,0.256021,65781.0,65780.0,0.0014]
[1728960577829,0.267021,65781.0,65780.0,0.0014]
[1728960589718,0.29490239,65781.0,65780.0,0.0014]
[1728960592021,1.79490239,65781.0,65780.0,0.0014]
[1728960592427,1.61490239,65781.0,65780.0,0.0014]
[1728960592631,1.767021,65781.0,65780.0,0.0014]
[1728960593734,0.267021,65781.0,65780.0,0.0014]
[1728960594128,0.29384788,65781.0,65780.0,0.0014]
[1728960595931,0.23384788,65781.0,65780.0,0.0014]
[1728960598331,0.23384788,65781.0,65780.0,0.06217823]
[1728960599837,0.23384788,65781.0,65780.0,0.0014]
[1728960600138,0.23384788,65781.0,65777.0,0.06076399]
[1728960600139,0.076024,65778.0,65777.0,0.06076399]
[1728960600337,0.316024,65778.0,65773.0,0.0004]
[1728960600539,0.6008,65774.0,65769.0,0.0071]
[1728960600846,0.076037,65767.0,65766.0,0.0075]
[1728960601039,0.436837,65767.0,65766.0,0.0004]
[1728960603241,0.452837,65767.0,65766.0,0.0024]
[1728960603930,0.632837,65767.0,65766.0,0.0024]
[1728960605627,0.66025977,65767.0,65766.0,0.0024]
[1728960607143,0.632837,65767.0,65766.0,0.0024]
[1728960609341,0.452837,65767.0,65766.0,0.0024]
[1728960609932,0.632837,65767.0,65766.0,0.0024]
[1728960615442,0.632837,65767.0,65766.0,0.07820193]
[1728960615639,0.59477765,65767.0,65766.0,0.07820193]
[1728960616243,0.59477765,65767.0,65766.0,0.11832653]
[1728960616744,0.59477765,65767.0,65766.0,0.19419065]
[1728960617145,0.59477765,65767.0,65766.0,0.11832653]
[1728960618043,0.59477765,65767.0,65766.0,0.1941974]
[1728960618345,0.59477765,65767.0,65766.0,0.11832653]
[1728960618746,0.23397765,65767.0,65766.0,0.11832653]
[1728960619045,0.59477765,65767.0,65766.0,0.11832653]
[1728960620749,0.41477765,65767.0,65766.0,0.11832653]
[1728960621845,0.41477765,65767.0,65766.0,0.28553187]
[1728960621846,0.016,65767.0,65766.0,0.28553187]
[1728960622043,0.3608,65773.0,65772.0,0.076031]
[1728960622344,0.3608,65773.0,65772.0,0.19235753]
[1728960622544,0.3608,65773.0,65772.0,0.33324768]
[1728960622942,0.3608,65773.0,65772.0,0.19235753]
[1728960623140,0.3608,65773.0,65772.0,0.33315638]
[1728960623443,0.3748,65773.0,65772.0,0.077431]
[1728960623751,0.014,65773.0,65772.0,0.077431]
[1728960624353,0.017,65773.0,65772.0,0.078431]
[1728960624650,0.009,65773.0,65772.0,0.078431]
[1728960625042,0.009,65773.0,65772.0,0.077431]
[1728960625954,0.129,65773.0,65772.0,0.077431]
[1728960628843,0.20503,65773.0,65772.0,0.077431]
[1728960630046,0.20503,65773.0,65772.0,0.0014]
[1728960630447,0.32503,65773.0,65772.0,0.0014]
[1728960632946,0.20503,65773.0,65772.0,0.0014]
[1728960633651,0.32503,65773.0,65772.0,0.0014]
[1728960635951,0.20503,65773.0,65772.0,0.0014]
[1728960636457,0.08503,65773.0,65772.0,0.0014]
[1728960636649,0.009,65773.0,65772.0,0.108831]
[1728960637155,0.009,65773.0,65772.0,0.18473593]
[1728960637857,0.009,65773.0,65772.0,0.30064348]
[1728960638650,0.009,65773.0,65772.0,0.25207567]
[1728960638852,0.009,65773.0,65772.0,0.34321307]
[1728960639250,0.009,65773.0,65772.0,0.25207567]
[1728960639557,0.009,65773.0,65772.0,0.34321046]
[1728960640547,0.009,65773.0,65772.0,0.39279606]
[1728960640761,0.009,65773.0,65772.0,0.39265488]
[1728960641257,0.009,65773.0,65772.0,1.20940358]
[1728960641850,0.009,65773.0,65772.0,0.75328358]
[1728960642956,0.009,65773.0,65772.0,0.39248358]
[1728960644848,0.009,65773.0,65772.0,0.75328358]
[1728960645459,0.009,65773.0,65772.0,1.80940358]
[1728960645659,0.007,65781.0,65780.0,0.076022]
[1728960645962,0.3608,65786.0,65784.0,0.076017]
[1728960646459,0.3608,65786.0,65785.0,0.076016]
[1728960647260,0.3608,65786.0,65785.0,0.107116]
[1728960647465,0.39803899,65786.0,65785.0,0.107116]
[1728960647853,0.40103899,65786.0,65785.0,0.108116]
[1728960648059,0.04023899,65786.0,65785.0,0.13497167]
[1728960648262,0.003,65786.0,65785.0,0.13497167]
[1728960648651,0.016,65786.0,65785.0,0.13497167]
[1728960649354,0.016,65786.0,65785.0,0.59101167]
[1728960649750,0.016,65786.0,65785.0,0.95181167]
[1728960649952,0.016,65786.0,65785.0,0.49577167]
[1728960650154,0.011,65786.0,65785.0,0.49677167]
[1728960651361,0.011,65786.0,65785.0,0.13597167]
[1728960655559,0.011,65786.0,65785.0,0.109116]
[1728960660775,0.011,65786.0,65785.0,0.469916]
[1728960661184,0.0004,65789.0,65785.0,1.557756]
[1728960661478,0.0004,65789.0,65788.0,0.256413]
[1728960662267,0.0004,65789.0,65788.0,0.076413]
[1728960663475,0.0014,65789.0,65788.0,0.077413]
[1728960664070,0.0004,65789.0,65788.0,0.077413]
[1728960664274,0.0014,65789.0,65788.0,0.078413]
[1728960667179,0.077411,65789.0,65788.0,0.078413]
[1728960667480,0.077411,65789.0,65788.0,0.0024]
[1728960667675,0.11464935,65789.0,65788.0,0.0024]
[1728960668074,0.438211,65789.0,65788.0,0.0024]
[1728960668274,0.07602,65782.0,65780.0,0.0075]
[1728960668574,0.3608,65781.0,65780.0,0.0004]
[1728960668782,0.436821,65781.0,65780.0,0.0459329]
[1728960668968,0.436821,65781.0,65780.0,0.0004]
[1728960671075,0.437821,65781.0,65780.0,0.0004]
[1728960672175,0.617821,65781.0,65780.0,0.0004]
[1728960673984,0.437821,65781.0,65780.0,0.0004]
[1728960674372,0.437821,65781.0,65780.0,0.0459329]
[1728960674982,0.437821,65781.0,65780.0,0.1219549]
[1728960675776,0.437821,65781.0,65780.0,0.076422]
[1728960675981,0.3618,65781.0,65780.0,0.076422]
[1728960676189,0.001,65781.0,65780.0,0.076422]
[1728960678881,0.001,65781.0,65780.0,0.10365666]
[1728960680286,0.001,65781.0,65780.0,0.076422]
[1728960683987,0.001,65781.0,65780.0,0.196422]
[1728960692484,0.001,65781.0,65780.0,0.228522]
[1728960695796,0.001,65781.0,65780.0,0.348522]
[1728960695998,0.001,65781.0,65780.0,0.228522]
[1728960696205,0.001,65781.0,65780.0,0.30441017]
[1728960696401,0.001,65781.0,65780.0,0.42029157]
[1728960698604,0.3682,65789.0,65780.0,1.8812834]
[1728960698605,0.0074,65789.0,65780.0,1.8812834]
[1728960698898,0.0004,65789.0,65788.0,0.196413]
[1728960699403,0.03763608,65789.0,65788.0,0.196413]
[1728960700299,0.03863608,65789.0,65788.0,0.196413]
[1728960700893,0.03863608,65789.0,65788.0,0.197413]
[1728960702299,0.03863608,65789.0,65788.0,0.198413]
[1728960703704,0.23464708,65789.0,65788.0,0.0024]
[1728960703900,0.03863608,65789.0,65788.0,0.534413]
[1728960704209,0.03863608,65789.0,65788.0,1.16165474]